bitfinex/quotes_ETHUSD_20241101
["timestamp","ask_amount","ask_price","bid_price","bid_amount"]
[1730440474676,7.96804,2510.1,2509.8,0.29851308]
[1730440474998,7.96804,2510.1,2509.7,0.77]
[1730440475365,7.96804,2510.1,2509.8,0.29854648]
[1730440475565,3.98401,2510.1,2509.7,0.77]
[1730440475803,3.98401,2510.1,2509.8,0.29854256]
[1730440475981,3.98401,2510.1,2509.7,0.77]
[1730440476162,7.968,2510.1,2509.8,0.29854259]
[1730440476363,7.968,2510.1,2509.7,1.33081945]
[1730440476705,7.968,2510.1,2509.8,0.29857686]
[1730440476902,3.98399,2510.1,2509.8,0.29857686]
[1730440477514,7.96799,2510.1,2509.7,0.77]
[1730440477724,7.96799,2510.1,2509.8,0.29859627]
[1730440477931,3.98399,2510.1,2509.7,0.77]
[1730440478122,3.98399,2510.1,2509.8,0.29859492]
[1730440478297,7.96803,2510.1,2509.7,0.77]
[1730440478503,7.96803,2510.1,2509.8,0.29862398]
[1730440478701,7.96803,2510.1,2509.7,0.77]
[1730440478900,7.96803,2510.1,2509.8,0.29861866]
[1730440479104,3.98399,2510.1,2509.7,0.77]
[1730440479303,3.98399,2510.1,2509.8,0.29864091]
[1730440479514,3.98399,2510.1,2509.7,0.77]
[1730440479686,3.98399,2510.1,2509.8,0.29864051]
[1730440479891,3.98399,2510.1,2509.7,0.77]
[1730440480417,3.98399,2510.1,2509.8,0.29866561]
[1730440480617,3.98399,2510.1,2509.7,0.77]
[1730440481164,3.98399,2510.1,2509.8,0.29866612]
[1730440481304,3.98399,2510.1,2509.7,0.77]
[1730440481503,7.96798,2510.1,2509.8,0.29869342]
[1730440481715,7.96798,2510.1,2509.7,1.28306093]
[1730440481916,7.96798,2510.1,2509.8,0.29869344]
[1730440482118,7.96798,2510.1,2509.7,0.77]
[1730440482295,7.96798,2510.1,2509.8,0.29872522]
[1730440482634,3.98399,2510.1,2509.7,0.77]
[1730440482922,3.98399,2510.1,2509.8,0.29872507]
[1730440483135,3.98399,2510.1,2509.7,1.28306093]
[1730440483312,3.98399,2510.1,2509.8,0.29876239]
[1730440483516,3.98399,2510.1,2509.9,0.29876239]
[1730440483727,3.98399,2510.1,2509.7,1.28306093]
[1730440483937,3.98399,2510.1,2509.8,1.22398912]
[1730440484135,3.98399,2510.1,2509.9,0.29876003]
[1730440484339,3.98399,2510.1,2509.7,1.28306093]
[1730440484636,3.98399,2510.1,2509.8,0.29880427]
[1730440484811,3.98399,2510.1,2509.9,0.29880427]
[1730440485011,3.98399,2510.1,2509.7,1.28306093]
[1730440485206,3.98399,2510.1,2509.8,0.29880294]
[1730440485504,3.98399,2510.1,2509.9,0.29880294]
[1730440485725,3.98399,2510.1,2509.7,1.28306093]
[1730440485909,3.98399,2510.1,2509.8,0.29885701]
[1730440486109,3.98399,2510.1,2509.9,0.29885701]
[1730440486310,3.98399,2510.1,2509.7,1.28306093]
[1730440486511,3.98399,2510.1,2509.8,0.2988535]
[1730440486712,3.98399,2510.1,2509.9,0.2988535]
[1730440486913,3.98399,2510.1,2509.7,1.28306093]
[1730440487125,3.98399,2510.1,2509.8,0.29885591]
[1730440487301,7.96804,2510.1,2509.9,0.29885591]
[1730440487502,3.98399,2510.1,2509.7,0.77]
[1730440487727,3.98399,2510.1,2509.7,1.35871218]
[1730440488253,7.968,2510.1,2509.7,1.35871218]
[1730440488415,3.98399,2510.1,2509.8,0.29885428]
[1730440488616,3.98399,2510.1,2509.9,0.29885428]
[1730440488849,3.98399,2510.1,2509.7,1.35871218]
[1730440489050,3.98399,2510.1,2509.8,0.2988577]
[1730440489377,3.98399,2510.1,2509.9,0.2988577]
[1730440489677,3.98399,2510.1,2509.7,1.35871218]
[1730440489877,3.98399,2510.1,2509.8,0.29886485]
[1730440490082,3.98399,2510.1,2509.9,0.29886485]
[1730440490240,3.98399,2510.1,2509.7,1.35871218]
[1730440490442,3.98399,2510.1,2509.8,0.84116615]
[1730440490678,3.98399,2510.1,2509.9,0.29887152]
[1730440490841,3.98399,2510.1,2509.7,0.77]
[1730440491145,3.98399,2510.1,2509.8,0.29887282]
[1730440491339,3.98399,2510.1,2509.9,0.29887279]
[1730440491535,3.98399,2510.1,2509.7,0.77]
[1730440491737,3.98399,2510.1,2509.8,0.29888142]
[1730440491937,3.98399,2510.1,2509.9,0.29888142]
[1730440492247,3.98399,2510.1,2509.7,1.3666806]
[1730440492452,3.98399,2510.1,2509.8,0.29889171]
[1730440492636,3.98399,2510.1,2509.9,0.29889171]
[1730440492878,3.98399,2510.1,2509.7,1.3666806]
[1730440493183,3.98399,2510.1,2509.8,0.29889187]
[1730440493350,3.98399,2510.1,2509.9,0.29889187]
[1730440493558,3.98399,2510.1,2509.7,1.3666806]
[1730440493743,3.98399,2510.1,2509.8,0.84199526]
[1730440493943,3.98399,2510.1,2509.9,0.29890378]
[1730440494138,3.98379,2510.2,2509.7,4.83421418]
[1730440494354,4.83983705,2510.5,2510.0,4.80335]
[1730440494676,4.77055,2510.5,2510.1,0.29890121]
[1730440494883,3.98347,2510.4,2510.2,0.29890121]
[1730440495083,3.98347,2510.4,2510.0,1.92548273]
[1730440495374,3.98347,2510.4,2510.3,0.29887085]
[1730440496147,3.98363,2510.3,2510.0,0.8193]
[1730440496345,3.98363,2510.3,2510.1,0.29882517]
[1730440496655,3.98363,2510.3,2510.2,0.29882517]
[1730440497472,3.98363,2510.3,2510.2,0.29876707]
[1730440497672,3.98347,2510.4,2510.0,0.8193]
[1730440497891,6.6,2511.5,2511.0,0.7897]
[1730440498071,6.6,2511.5,2510.6,0.01]
[1730440498072,6.6,2511.8,2511.7,4.78106]
[1730440498236,7.01544926,2511.9,2511.8,3.9812]
[1730440498441,6.6,2511.9,2511.8,6.66337326]
[1730440498667,6.6,2511.9,2511.8,7.55784638]
[1730440498867,6.6,2511.9,2511.8,10.00099647]
[1730440499080,6.6,2511.9,2511.8,7.61759038]
[1730440499283,6.6,2511.9,2511.8,8.99452494]
[1730440499584,6.6,2511.9,2511.8,7.74192735]
[1730440499937,6.6,2511.9,2511.8,7.26617413]
[1730440500740,6.6,2511.9,2511.8,7.34239751]
[1730440501079,6.6,2511.9,2511.8,7.81812614]
[1730440501644,6.6,2511.9,2511.8,7.86641124]
[1730440501852,6.6,2511.9,2511.8,6.9688277]
[1730440502161,6.6,2511.9,2511.8,6.67148194]
[1730440502554,6.6,2511.9,2511.8,6.79600655]
[1730440503152,6.6,2511.9,2511.8,0.12452461]
[1730440503974,6.6,2511.9,2511.6,5.7274607]
[1730440505096,6.6,2511.9,2511.6,5.47841165]
[1730440506077,4.73729,2512.2,2511.6,5.47841165]
[1730440506471,4.73729,2512.2,2511.6,3.98137]
[1730440509094,0.7567,2512.2,2511.7,3.98133]
[1730440509305,0.7567,2512.2,2511.6,7.32300121]
[1730440509473,0.7567,2512.2,2511.7,0.73230012]
[1730440509670,0.7567,2512.2,2511.8,3.34163121]
[1730440510309,6.98,2512.6,2511.8,7.32282121]
[1730440510513,0.7925,2512.5,2511.9,3.98105]
[1730440510809,0.7925,2512.5,2511.9,4.77095]
[1730440511015,0.7925,2512.5,2511.9,6.05355713]
[1730440520654,4.7726,2512.5,2511.9,6.05355713]
[1730440521012,0.7925,2512.5,2511.9,6.05355713]
[1730440522414,4.77261,2512.5,2511.9,6.05355713]
[1730440525061,0.41536934,2513.1,2511.9,6.06355713]
[1730440525062,4.79362,2512.9,2511.9,6.06355713]
[1730440525212,0.8141,2512.9,2511.9,6.06355713]
[1730440525555,0.8141,2512.9,2511.9,6.82768856]
[1730440526411,0.8141,2512.9,2511.9,6.74807936]
[1730440526820,0.8141,2512.9,2511.9,6.82768591]
[1730440527749,0.8141,2512.9,2511.9,6.70316368]
[1730440528057,0.8141,2512.9,2511.9,6.82767523]
[1730440528412,0.8141,2512.9,2511.9,8.32207598]
[1730440528617,0.8141,2512.9,2511.9,9.73687013]
[1730440530511,4.79359,2512.9,2511.9,13.93287013]
[1730440530717,4.79359,2512.9,2511.9,9.73687013]
[1730440531418,4.79359,2512.9,2511.9,9.73687183]
[1730440531617,0.8141,2512.9,2511.9,9.73687183]
[1730440533217,0.8141,2512.9,2511.9,10.8182105]
[1730440534148,0.8141,2512.9,2511.9,10.56918651]
[1730440534867,0.8141,2512.9,2511.9,9.06810985]
[1730440535371,0.8141,2512.9,2511.9,9.0681117]
[1730440535536,19.99605892,2512.0,2511.9,9.7368728]
[1730440535852,19.99605892,2512.0,2511.9,9.61235863]
[1730440536019,19.99605892,2512.0,2511.9,9.73687206]
[1730440536439,19.99605892,2512.0,2511.9,11.23849631]
[1730440536619,19.99605892,2512.0,2511.9,11.22565898]
[1730440537052,19.99605892,2512.0,2511.9,9.73125823]
[1730440537439,19.99605892,2512.0,2511.9,10.16154908]
[1730440537647,19.99605892,2512.0,2511.9,9.91252242]
[1730440538060,19.99605892,2512.0,2511.9,11.40692317]
[1730440538266,19.99605892,2512.0,2511.9,10.16154908]
[1730440538428,19.99605892,2512.0,2511.9,10.20795883]
[1730440538769,19.99605892,2512.0,2511.9,10.44226329]
[1730440539268,19.99605892,2512.0,2511.9,10.44224823]
[1730440539563,19.99605892,2512.0,2511.9,10.85791757]
[1730440540370,19.09954001,2512.0,2511.9,9.26058568]
[1730440540668,19.09954001,2512.0,2511.9,7.09304831]
[1730440540825,19.09954001,2512.0,2511.9,6.4294536]
[1730440541469,19.09954001,2512.0,2511.9,7.14050335]
[1730440542152,19.09954001,2512.0,2511.9,7.14052813]
[1730440542467,19.09954001,2512.0,2511.9,8.0299734]
[1730440542624,19.09954001,2512.0,2511.9,7.55497403]
[1730440543367,19.09954001,2512.0,2511.9,6.3724429]
[1730440544035,19.09954001,2512.0,2511.9,8.45443218]
[1730440544352,19.09954001,2512.0,2511.9,6.3724429]
[1730440544530,19.09954001,2512.0,2511.9,8.45450494]
[1730440545556,19.09954001,2512.0,2511.9,5.59998644]
[1730440545865,19.09954001,2512.0,2511.9,5.89744502]
[1730440546168,19.09954001,2512.0,2511.9,8.33644]
[1730440546379,19.09954001,2512.0,2511.9,8.03898142]
[1730440546534,19.09954001,2512.0,2511.9,8.51491515]
[1730440547045,19.09954001,2512.0,2511.9,6.84932865]
[1730440547373,19.09954001,2512.0,2511.9,8.51491515]
[1730440547555,19.09954001,2512.0,2511.9,8.09860462]
[1730440548271,19.09954001,2512.0,2511.9,7.32520001]
[1730440548465,19.09954001,2512.0,2511.9,7.62270003]
[1730440548671,19.09954001,2512.0,2511.9,6.84942409]
[1730440548911,19.09954001,2512.0,2511.9,8.09870006]
[1730440549250,19.09954001,2512.0,2511.9,6.72488453]
[1730440549429,19.09954001,2512.0,2511.9,7.68243303]
[1730440550941,19.09954001,2512.0,2511.9,6.84942455]
[1730440551139,19.09954001,2512.0,2511.9,7.68243303]
[1730440551472,19.09954001,2512.0,2511.9,6.84942455]
[1730440551674,19.09954001,2512.0,2511.9,6.37342452]
[1730440552139,19.09954001,2512.0,2511.9,6.8494614]
[1730440552335,19.09954001,2512.0,2511.9,0.89797377]
[1730440552785,19.09954001,2512.0,2511.9,2.39237452]
[1730440552997,19.09954001,2512.0,2511.9,2.39237617]
[1730440553298,19.09954001,2512.0,2511.9,6.3735017]
[1730440553990,19.09954001,2512.0,2511.9,2.3924517]
[1730440554291,19.09954001,2512.0,2511.9,0.89805095]
[1730440554603,19.09954001,2512.0,2511.9,4.87910095]
[1730440555295,19.09954001,2512.0,2511.9,5.89756797]
[1730440556421,19.09954001,2512.0,2511.9,5.47545075]
[1730440556599,19.09954001,2512.0,2511.9,5.59998906]
[1730440556775,19.09954001,2512.0,2511.9,1.91664595]
[1730440556971,19.09954001,2512.0,2511.9,0.4222452]
[1730440559203,19.09954001,2512.0,2511.9,0.42225312]
[1730440560222,19.09954001,2512.0,2511.8,3.9811]
[1730440560387,19.09954001,2512.0,2511.9,0.12454636]
[1730440560589,19.09954001,2512.0,2511.9,0.12454662]
[1730440560900,19.09954001,2512.0,2511.9,0.42228867]
[1730440562008,19.09954001,2512.0,2511.9,0.29774205]
[1730440562212,21.09074401,2512.0,2511.8,0.2977614]
[1730440562377,19.09954001,2512.0,2511.7,3.98128]
[1730440562577,19.09954001,2512.0,2511.8,0.4223001]
[1730440562772,19.09954001,2512.0,2511.8,0.12454888]
[1730440562997,0.7703,2511.9,2511.7,0.12454888]
[1730440563198,0.7703,2511.9,2511.8,0.29776467]
[1730440563519,0.7703,2511.9,2511.7,0.12455065]
[1730440563824,0.7703,2511.9,2511.6,7.96286]
[1730440563985,0.7703,2511.9,2511.7,0.42229934]
[1730440564183,0.7703,2511.9,2511.8,0.29774019]
[1730440564378,0.7703,2511.9,2511.7,0.12455015]
[1730440564697,0.7703,2511.9,2511.6,7.96286]
[1730440564908,0.7703,2511.9,2511.7,0.42226818]
[1730440565092,0.7703,2511.9,2511.7,0.42226797]
[1730440565294,0.7703,2511.9,2511.7,0.29771795]
[1730440566507,0.7703,2511.9,2511.6,3.98142]
[1730440567094,0.7703,2511.9,2511.6,7.96284]
[1730440567296,0.7703,2511.9,2511.6,3.98142]
[1730440567783,0.7703,2511.9,2511.7,3.98134]
[1730440567979,0.7703,2511.9,2511.7,4.10589042]
[1730440568408,0.7703,2511.9,2511.8,3.9812]
[1730440568728,19.09954001,2512.0,2511.9,3.98105]
[1730440568906,19.09954001,2512.0,2511.9,5.47545075]
[1730440569584,19.09954001,2512.0,2511.9,5.8975373]
[1730440570722,19.09954001,2512.0,2511.9,5.89753934]
[1730440570886,19.09954001,2512.0,2511.9,5.89755393]
[1730440571456,19.09954001,2512.0,2511.9,7.00643109]
[1730440573622,19.09954001,2512.0,2511.9,6.88189122]
[1730440573820,19.09954001,2512.0,2511.9,7.00645252]
[1730440574891,19.09954001,2512.0,2511.9,5.51205177]
[1730440575125,19.09954001,2512.0,2511.9,4.40317461]
[1730440577186,19.09954001,2512.0,2511.9,0.42212461]
[1730440577797,19.09954001,2512.0,2511.9,4.40317461]
[1730440578001,19.09954001,2512.0,2511.9,0.42212461]
[1730440578981,19.09954001,2512.0,2511.9,4.40317461]
[1730440580338,19.09954001,2512.0,2511.9,4.87937228]
[1730440580950,19.09954001,2512.0,2511.9,4.8793742]
[1730440581349,19.09954001,2512.0,2511.9,0.42212649]
[1730440581645,19.09954001,2512.0,2511.9,0.42234936]
[1730440581942,19.09954001,2512.0,2511.9,0.8988428]
[1730440584552,19.09954001,2512.0,2511.9,0.89938799]
[1730440587420,19.09954001,2512.0,2511.9,5.71344647]
[1730440588050,19.09954001,2512.0,2511.9,4.88043799]
[1730440588251,19.09954001,2512.0,2511.9,5.71344647]
[1730440588468,19.09954001,2512.0,2511.9,4.93859932]
[1730440588620,19.09954001,2512.0,2511.9,5.23681699]
[1730440588820,19.09954001,2512.0,2511.9,5.71396527]
[1730440589150,19.09954001,2512.0,2511.9,4.88095679]
[1730440589758,19.09954001,2512.0,2511.9,5.71396527]
[1730440590056,19.09954001,2512.0,2511.9,0.89990679]
[1730440590280,19.09954001,2512.0,2511.9,5.71396527]
[1730440592048,19.09954001,2512.0,2511.9,5.71354303]
[1730440592253,19.09954001,2512.0,2511.9,7.034302]
[1730440593285,19.09954001,2512.0,2511.9,7.03336282]
[1730440593445,19.09954001,2512.0,2511.9,5.71260385]
[1730440595670,19.09954001,2512.0,2511.9,4.8131193]
[1730440595988,19.09954001,2512.0,2511.9,5.71267338]
[1730440596881,19.09954001,2512.0,2511.9,7.20707413]
[1730440597084,19.09954001,2512.0,2511.9,7.12686565]
[1730440597248,19.09954001,2512.0,2511.9,8.56889982]
[1730440597451,19.09954001,2512.0,2511.9,9.81817579]
[1730440597676,19.09954001,2512.0,2511.9,8.56889982]
[1730440598074,19.09954001,2512.0,2511.9,9.40315984]
[1730440599284,19.09954001,2512.0,2511.9,9.40315631]
[1730440601953,19.09954001,2512.0,2511.9,9.40299395]
[1730440602809,19.09954001,2512.0,2511.9,8.6502651]
[1730440602965,19.09954001,2512.0,2511.9,7.87525335]
[1730440603396,19.09954001,2512.0,2511.9,8.65007059]
[1730440606610,19.09954001,2512.0,2511.9,8.65005867]
[1730440613415,19.09954001,2512.0,2511.9,7.81588986]
[1730440613819,19.09954001,2512.0,2511.9,8.650558]
[1730440614029,19.09954001,2512.0,2511.9,7.87575208]
[1730440614184,19.09954001,2512.0,2511.9,8.17391144]
[1730440614495,19.09954001,2512.0,2511.9,8.58851927]
[1730440614907,19.09954001,2512.0,2511.9,9.06557425]
[1730440615931,19.09954001,2512.0,2511.9,9.0655779]
[1730440617137,19.09954001,2512.0,2511.9,8.16582171]
[1730440617434,19.09954001,2512.0,2511.9,8.2903597]
[1730440617635,19.09954001,2512.0,2511.9,9.06559526]
[1730440618339,19.09954001,2512.0,2511.9,7.62356109]
[1730440621736,19.09954001,2512.0,2511.9,7.62354002]
[1730440622414,19.09954001,2512.0,2511.9,7.82280049]
[1730440623209,19.09954001,2512.0,2511.9,6.32839974]
[1730440627242,19.09954001,2512.0,2511.9,6.32839098]
[1730440628627,19.09954001,2512.0,2511.9,1.93408697]
[1730440629550,19.09954001,2512.0,2511.9,1.09900419]
[1730440630255,19.09954001,2512.0,2511.8,4.81618278]
[1730440630451,19.09954001,2512.0,2511.8,0.83508278]
[1730440630452,21.08749401,2512.0,2511.8,0.83508278]
[1730440631458,21.08749401,2512.0,2511.9,0.42285541]
[1730440632754,21.08749401,2512.0,2511.9,0.32381898]
[1730440632958,21.08749401,2512.0,2511.9,0.19927322]
[1730440633115,19.09954001,2512.0,2511.9,0.19927322]
[1730440633656,19.09954001,2512.0,2511.9,0.29849546]
[1730440634352,19.09954001,2512.0,2511.7,2.32948353]
[1730440636881,19.09954001,2512.0,2511.8,0.32381893]
[1730440637023,19.09954001,2512.0,2511.9,0.12454574]
[1730440637337,19.09954001,2512.0,2511.9,0.62234114]
[1730440637927,19.09954001,2512.0,2511.9,0.42306795]
[1730440639326,23.08043001,2512.0,2511.9,0.42306795]
[1730440639522,23.84193001,2512.0,2511.9,0.29852221]
[1730440639833,0.7615,2511.8,2511.6,0.19929595]
[1730440640036,0.7615,2511.8,2511.4,0.89480247]
[1730440640037,7.126957,2511.8,2511.7,0.42307512]
[1730440640444,7.126957,2511.8,2511.7,0.29851099]
[1730440640651,6.365457,2511.8,2511.4,0.05971969]
[1730440640853,6.365457,2511.8,2511.5,0.42303122]
[1730440640854,3.98156,2511.6,2511.5,0.42303122]
[1730440641447,0.7904,2511.5,2511.4,0.05971969]
[1730440641757,0.7904,2511.5,2511.4,0.18429448]
[1730440642424,0.7904,2511.5,2511.4,0.35789264]
[1730440642625,0.7904,2511.5,2511.4,0.65619089]
[1730440642846,0.7904,2511.5,2511.4,0.95436816]
[1730440643159,0.7904,2511.5,2511.4,0.65619521]
[1730440643366,4.77208,2511.5,2511.4,0.35801794]
[1730440643667,5.46861925,2511.5,2511.4,0.35801794]
[1730440645249,1.48693925,2511.5,2511.4,0.29829825]
[1730440645465,0.7904,2511.5,2511.4,0.29829825]
[1730440645766,4.77208,2511.5,2511.4,0.29829825]
[1730440646926,4.77208,2511.5,2511.0,4.28021952]
[1730440647466,4.77208,2511.5,2511.0,3.98245]
[1730440648144,4.77208,2511.5,2511.0,4.28013868]
[1730440648448,4.77208,2511.5,2511.0,3.98245]
[1730440652466,0.7904,2511.5,2511.0,5.0173993]
[1730440652960,4.77216,2511.5,2511.0,5.0173993]
[1730440658871,4.77213,2511.5,2511.0,5.0173993]
[1730440659030,4.77213,2511.5,2511.0,5.0173393]
[1730440659435,4.77213,2511.5,2511.0,8.9997293]
[1730440659665,4.77213,2511.5,2511.0,5.0173393]
[1730440659873,4.77213,2511.5,2511.0,8.9997293]
[1730440660077,4.77213,2511.5,2511.0,5.0173393]
[1730440660372,4.77213,2511.5,2511.0,8.9996993]
[1730440660576,3.98142,2511.7,2511.2,3.98201]
[1730440660780,3.7561,2511.8,2511.3,5.55592064]
[1730440660781,0.7561,2511.8,2511.3,5.55592064]
[1730440660951,0.7561,2511.8,2511.3,9.53783064]
[1730440661275,0.7561,2511.8,2511.4,0.95378306]
[1730440661440,4.7374,2511.8,2511.4,0.95378306]
[1730440661641,0.7561,2511.8,2511.4,0.95378306]
[1730440662063,4.73739,2511.8,2511.4,0.95378306]
[1730440663653,0.7561,2511.8,2511.4,0.95378306]
[1730440663853,3.98137,2511.7,2511.3,3.98189]
[1730440664182,0.8134,2511.5,2511.1,5.44959401]
[1730440664672,0.8134,2511.5,2511.1,6.94399476]
[1730440665398,0.8134,2511.5,2511.2,0.07963513]
[1730440665601,0.8134,2511.5,2511.2,0.78199812]
[1730440666600,0.8134,2511.5,2511.2,4.76414812]
[1730440668889,0.8134,2511.5,2511.2,0.78199812]
[1730440670773,0.8134,2511.5,2511.2,0.70236299]
[1730440671373,0.8134,2511.5,2511.2,0.99997464]
[1730440672501,0.8134,2511.5,2511.2,0.82693974]
[1730440672710,0.8134,2511.5,2511.2,0.70236299]
[1730440672911,0.8134,2511.5,2511.2,0.82693921]
[1730440673521,4.79787,2511.7,2511.3,4.52532216]
[1730440674020,8.77935,2511.7,2511.3,0.41875531]
[1730440674183,8.77935,2511.7,2511.3,0.54332952]
[1730440674381,8.77933,2511.7,2511.3,0.41875531]
[1730440674774,8.77933,2511.7,2511.4,0.29779988]
[1730440674981,8.77933,2511.7,2511.1,6.29280075]
[1730440675182,8.77933,2511.7,2511.2,1.07170643]
[1730440675372,8.77933,2511.7,2511.3,0.42249442]
[1730440675576,8.77933,2511.7,2511.4,0.42249442]
[1730440675815,8.77933,2511.7,2511.2,0.84853163]
[1730440676014,8.77933,2511.7,2511.3,0.42259526]
[1730440676215,8.77933,2511.7,2511.2,0.84853163]
[1730440676216,8.77933,2511.7,2511.4,0.42259526]
[1730440676418,8.77933,2511.7,2511.2,0.84853142]
[1730440676578,8.77933,2511.7,2511.3,0.12457474]
[1730440676775,8.77933,2511.7,2511.4,0.42261299]
[1730440677005,4.79787,2511.7,2511.2,4.63135201]
[1730440677211,4.79787,2511.7,2511.3,1.21698626]
[1730440677412,8.77933,2511.7,2511.4,0.12457098]
[1730440677603,8.77933,2511.7,2511.5,0.29801705]
[1730440677802,8.77933,2511.7,2511.3,0.12457456]
[1730440678106,8.77933,2511.7,2511.4,0.29804468]
[1730440678306,8.77933,2511.7,2511.2,0.64921201]
[1730440678503,8.77933,2511.7,2511.3,0.42262206]
[1730440678678,8.77933,2511.7,2511.4,0.42262206]
[1730440678884,8.77933,2511.7,2511.2,0.64921201]
[1730440679118,8.77933,2511.7,2511.3,0.42262092]
[1730440679414,8.77933,2511.7,2511.4,0.42262092]
[1730440679598,8.77933,2511.7,2511.2,0.64921201]
[1730440679806,8.77933,2511.7,2511.3,0.42262924]
[1730440680060,8.77933,2511.7,2511.2,0.64921201]
[1730440680327,8.77933,2511.7,2511.4,0.29805784]
[1730440680819,4.79787,2511.7,2511.2,0.64921201]
[1730440681020,4.79787,2511.7,2511.3,0.42264699]
[1730440681221,4.79787,2511.7,2511.4,0.42264699]
[1730440681517,8.77934,2511.7,2511.2,4.63128201]
[1730440681723,8.77934,2511.7,2511.3,0.42267682]
[1730440681908,8.77934,2511.7,2511.4,0.42267682]
[1730440682104,4.79787,2511.7,2511.2,4.63128201]
[1730440682291,4.79787,2511.7,2511.3,1.59860561]
[1730440682497,4.79787,2511.7,2511.3,1.47403182]
[1730440682692,8.77938,2511.7,2511.4,0.12457437]
[1730440682887,8.77938,2511.7,2511.2,0.64921201]
[1730440683091,8.77938,2511.7,2511.3,0.42270907]
[1730440683318,8.77938,2511.7,2511.4,0.42270907]
[1730440683493,8.77938,2511.7,2511.5,0.29813777]
[1730440683819,8.77938,2511.7,2511.2,0.64921201]
[1730440684178,8.77938,2511.7,2511.3,0.42280213]
[1730440684283,8.77938,2511.7,2511.4,0.42280213]
[1730440684483,8.77938,2511.7,2511.5,0.29822729]
[1730440684688,8.77938,2511.7,2511.2,0.64921201]
[1730440684889,4.79787,2511.7,2511.3,0.42286716]
[1730440685085,4.79787,2511.7,2511.4,0.42286716]
[1730440685290,4.79787,2511.7,2511.5,0.42286716]
[1730440685492,4.79787,2511.7,2511.6,0.29829221]
[1730440685992,4.79787,2511.7,2511.6,0.42286082]
[1730440686200,4.79787,2511.7,2511.2,0.91471802]
[1730440686430,4.79787,2511.7,2511.3,0.42295999]
[1730440686632,4.79787,2511.7,2511.4,0.42295999]
[1730440686921,4.79787,2511.7,2511.5,0.29838486]
[1730440687220,4.79787,2511.7,2511.6,0.29838486]
[1730440687539,4.79787,2511.7,2511.1,5.63348278]
[1730440687693,4.79787,2511.7,2511.2,1.11922176]
[1730440687906,4.79787,2511.7,2511.3,0.42298237]
[1730440688103,4.79787,2511.7,2511.4,0.42298237]
[1730440688331,4.79787,2511.7,2511.5,0.29840559]
[1730440688540,4.79787,2511.7,2511.2,0.69623939]
[1730440688716,4.79787,2511.7,2511.3,0.42298455]
[1730440688915,4.79787,2511.7,2511.4,0.42298455]
[1730440689118,4.79787,2511.7,2511.5,0.29840801]
[1730440689433,4.79787,2511.7,2511.2,0.69623939]
[1730440689604,4.79787,2511.7,2511.3,1.06393346]
[1730440689806,4.79787,2511.7,2511.4,0.42299765]
[1730440690002,4.79787,2511.7,2511.5,0.29842111]
[1730440690205,4.79787,2511.7,2511.1,5.63348278]
[1730440690425,4.79787,2511.7,2511.2,0.42303911]
[1730440690649,4.79787,2511.7,2511.3,0.42303911]
[1730440690816,4.79787,2511.7,2511.4,0.42303911]
[1730440691015,4.79787,2511.7,2511.5,0.29846141]
[1730440691224,4.79787,2511.7,2511.2,4.72068335]
[1730440691416,4.79787,2511.7,2511.3,0.42304002]
[1730440691621,4.79787,2511.7,2511.4,0.42304002]
[1730440691823,4.79787,2511.7,2511.5,0.29846276]
[1730440692027,4.79787,2511.7,2511.2,0.73854335]
[1730440692219,4.79787,2511.7,2511.3,0.42304654]
[1730440692544,4.79787,2511.7,2511.4,0.42304654]
[1730440692740,4.79787,2511.7,2511.4,0.2984682]
[1730440692918,4.79787,2511.7,2511.5,0.2984682]
[1730440693239,4.79787,2511.7,2511.2,5.55567613]
[1730440693444,0.8165,2511.7,2511.3,1.4584467]
[1730440693644,3.98152,2511.6,2511.4,0.29846338]
[1730440693943,3.98152,2511.6,2511.5,0.12457803]
[1730440694249,3.98152,2511.6,2511.5,0.29848023]
[1730440697813,3.98152,2511.6,2511.3,0.47772343]
[1730440698146,3.98152,2511.6,2511.3,1.01730823]
[1730440698645,0.8165,2511.7,2511.3,1.01730823]
[1730440698944,4.79789,2511.7,2511.3,1.01730823]
[1730440699116,0.8165,2511.7,2511.3,4.99927823]
[1730440699819,4.79789,2511.7,2511.3,1.01730823]
[1730440701518,0.8165,2511.7,2511.3,1.01730823]
[1730440702347,4.79791,2511.7,2511.3,1.01730823]
[1730440703164,4.79791,2511.7,2511.4,0.12457825]
[1730440703546,4.79791,2511.7,2511.4,0.29858629]
[1730440703750,4.79791,2511.7,2511.5,0.29858629]
[1730440703958,4.79791,2511.7,2511.3,1.01730823]
[1730440704167,4.79791,2511.7,2511.4,0.29860008]
[1730440704472,4.79791,2511.7,2511.5,0.29860008]
[1730440704672,4.79791,2511.7,2511.3,1.01730823]
[1730440704836,4.79791,2511.7,2511.4,0.29861138]
[1730440705038,4.79791,2511.7,2511.5,0.29861138]
[1730440705260,4.79791,2511.7,2511.2,4.81712278]
[1730440705470,4.79791,2511.7,2511.3,0.77639217]
[1730440705652,4.79791,2511.7,2511.4,0.77639217]
[1730440705861,4.79791,2511.7,2511.5,0.29861237]
[1730440706047,4.79791,2511.7,2511.6,0.29861237]
[1730440707072,0.8165,2511.7,2511.6,0.29861237]
[1730440709279,7.96254,2511.8,2511.6,0.29861237]
[1730440709491,3.98148,2511.7,2511.4,0.7842]
[1730440709774,3.98148,2511.7,2511.5,0.29865234]
[1730440710149,3.98148,2511.7,2511.6,0.29865234]
[1730440710536,3.98122,2511.8,2511.4,0.7842]
[1730440710767,3.98122,2511.8,2511.5,0.29865697]
[1730440710940,0.781,2511.9,2511.6,0.29865697]
[1730440710941,3.781,2511.9,2511.6,0.29865697]
[1730440711142,3.781,2511.9,2511.7,0.29865697]
[1730440711441,7.76207,2511.9,2511.4,4.76603]
[1730440711647,7.76207,2511.9,2511.5,0.77633268]
[1730440711848,7.76207,2511.9,2511.6,0.29858949]
[1730440712150,7.76207,2511.9,2511.7,0.29858949]
[1730440712357,7.76207,2511.9,2511.4,0.7842]
[1730440712556,7.76207,2511.9,2511.5,0.77641322]
[1730440712857,7.76207,2511.9,2511.6,0.29862047]
[1730440713057,7.76207,2511.9,2511.7,0.29862047]
[1730440713265,7.76207,2511.9,2511.4,0.7842]
[1730440713571,3.98121,2511.8,2511.5,0.77638812]
[1730440713774,3.98121,2511.8,2511.6,0.29861081]
[1730440713941,3.98121,2511.8,2511.7,0.29861081]
[1730440717169,7.76205,2511.9,2511.4,0.7842]
[1730440717448,3.98137,2511.7,2511.5,0.29870668]